Cogmind - Beta 11.1 @@@ ROGUE MODE // 2022.08.29 @ 17:37:01 Player: darlorth Result: Destroyed by G-34 Mercenary with Small Laser Performance ------------- Evolutions (0) 0 Regions Visited (1) 200 Robots Destroyed (25) 125 Value Destroyed (483) 483 Prototype IDs (0) 0 Alien Tech Used (0) 0 Bonus (0) 0 TOTAL SCORE: 808 Bonus ------- None Cogmind --------- Core Integrity 0/250 Matter 293/300 Energy 250/250 System Corruption 0% Temperature Cool (6) Movement Walking (190) Ox1 Location -10/Materials Parts ------- > --- POWER (1) -------- Ion Engine > --- PROPULSION (2) --- Improved Aluminum Leg Improved Aluminum Leg > --- UTILITY (2) ------ Heat Sink Large Storage Unit > --- WEAPON (2) ------- Shotgun Shotgun > --- INVENTORY (15) --- Light Ion Engine Aluminum Leg Aluminum Leg Improved Aluminum Leg Improved Aluminum Leg Wheel Seismic Detector Medium Laser Shotgun Shotgun Grenade Launcher Peak State ------------ > --- POWER ------------ Ion Engine > --- PROPULSION ------- Improved Aluminum Leg Improved Aluminum Leg > --- UTILITY ---------- Heat Sink Medium Storage Unit > --- WEAPON ----------- Shotgun Shotgun > --- INVENTORY -------- Aluminum Leg Aluminum Leg Aluminum Leg Wheel Flight Unit Seismic Detector Medium Laser Shotgun Shotgun [Rating: 12] Favorites ----------- Power Ion Engine Engine Ion Engine Propulsion Improved Aluminum Leg Leg Improved Aluminum Leg Wheel Wheel Flight Unit Flight Unit Utility Heat Sink Device Heat Sink Storage Large Storage Unit Weapon Shotgun Energy Gun Medium Laser Ballistic Gun Shotgun Build | -11 -10 ------- Run | Scr Mat Slots Evolved . | . . Power . | . . Propulsion . | . . Utility . | . . Weapon . | . . Parts Attached 27 | 7 20 Power 5 | 1 4 Engine 5 | 1 4 Core . | . . Reactor . | . . Propulsion 9 | 2 7 Treads . | . . Leg 2 | . 2 Wheel 5 | 2 3 Hover . | . . Flight 2 | . 2 Utility 5 | 2 3 Device 2 | 1 1 Storage 3 | 1 2 Processor . | . . Hackware . | . . Protection . | . . Artifact . | . . Weapon 8 | 2 6 Energy Gun 2 | . 2 Energy Cannon . | . . Ballistic Gun 6 | 2 4 Ballistic Cannon . | . . Launcher . | . . Special Weapon . | . . Impact Weapon . | . . Slashing Weapon . | . . Piercing Weapon . | . . Special Melee Weapon . | . . Unidentified Prototypes . | . . Parts Lost 5 | . 5 Power 2 | . 2 Propulsion 2 | . 2 Utility 1 | . 1 Weapon . | . . Highest Loss Streak 2 | . 2 To Critical Strikes . | . . Average Slot Usage (%) 94 | . 94 Engine 12 | . 12 Leg 20 | . 20 Wheel 2 | . 2 Flight 3 | . 3 Device 13 | . 13 Storage 14 | . 14 Ballistic Gun 26 | . 26 Naked Turns . | . . Heaviest Build 32 | 11 32 Greatest Support 26 | 20 26 Greatest Overweight (x) 7 | 2 7 Average Overweight (x) . | . . Largest Inventory Capacity 15 | 8 15 Average Capacity 12 | 7 12 Most Carried 11 | 3 11 Average Carried 8 | 1 8 Final Capacity 15 | 8 15 Final Carried 11 | 2 11 Class Distribution -------------------- 91% | Mutant 8% | Scavenger-Mutant Dominant Class ---------------- Mutant | -10/Materials Resources | -11 -10 ----------- Run | Scr Mat Matter Collected 719 | 300 419 Remotely . | . . Salvage Created 830 | 204 626 Parts 44 | 17 27 Haulers Intercepted 2 | . 2 Recyclers Shooed . | . . Parts Field Recycled . | . . Retrieved Matter . | . . Parts Self-Destructed . | . . Prevented . | . . Kills | -11 -10 ------- Run | Scr Mat Combat Hostiles Destroyed 13 | . 13 Guns 13 | . 13 Classes Destroyed 9 | 3 6 Worker 2 | 2 . Builder 1 | . 1 Tunneler 4 | 4 . Hauler 2 | . 2 Recycler 1 | 1 . Operator 1 | . 1 Watcher 1 | . 1 Swarmer 3 | . 3 Grunt 10 | . 10 Best Kill Streak 5 | 4 5 Combat Bots Only 5 | . 5 Max Kills in Single Turn 2 | 1 2 Gunslinging 1 | . 1 Exploded . | . . Melee . | . . Uniques/NPCs Destroyed . | . . Combat | -11 -10 -------- Run | Scr Mat Damage Taken 788 | . 788 Core 260 | . 260 Absorbed by Shields . | . . Core Remaining (%) 100 | 100 . Volleys Fired 77 | 15 62 Largest 2 | 2 2 Hottest 70 | 40 70 Shots Fired 150 | 30 120 Gun 150 | 30 120 Cannon . | . . Launcher . | . . Special . | . . Kinetic 128 | 30 98 Thermal 22 | . 22 Explosive . | . . Electromagnetic . | . . Robot Hit Streak 12 | 12 11 Robot Miss Streak 8 | 1 8 Penetration Max . | . . Secondary Targets 3 | . 3 Max Gunslinging Chain 1 | . 1 Shots Hit Robots 102 | 24 78 Core Hits 50 | 14 36 Critical Kills . | . . Critical Parts Destroyed 1 | . 1 Critical Strikes 1 | . 1 Destroy 1 | . 1 Melee Attacks . | . . Impact . | . . Slashing . | . . Piercing . | . . Sneak Attacks . | . . Combat Hostiles . | . . Follow-up Attacks . | . . Damage Inflicted 1128 | 189 939 Guns 1119 | 189 930 Cannons . | . . Explosions . | . . Melee . | . . Ramming 9 | . 9 Kinetic 958 | 189 769 Thermal 161 | . 161 Explosive . | . . Electromagnetic . | . . Impact . | . . Slashing . | . . Piercing . | . . Highest Corruption . | . . Average Corruption . | . . Corruption Purged . | . . Corruption Blocked . | . . Overload Shots . | . . Overflow Damage . | . . Projectiles . | . . Explosions . | . . Melee . | . . Knockbacks . | . . Impact . | . . Kinetic . | . . Secondary . | . . Self-Inflicted Damage . | . . Shots . | . . Rammed . | . . Targets Rammed 1 | . 1 Kicked 1 | . 1 Crushed . | . . Highest Temperature 291 | . 291 Average Temperature 105 | . 105 Received Heat Transfer 393 | . 393 Effects 3 | . 3 Energy Bleed 1 | . 1 Interference 2 | . 2 Siege Activations . | . . Robots Corrupted . | . . Combat Hostiles . | . . Parts Fried . | . . Impact Corruptions . | . . Robots Melted . | . . Combat Hostiles . | . . Parts Melted 1 | . 1 Heat Transferred 481 | . 481 Parts Sabotaged . | . . Parts Stolen . | . . Parts Stripped . | . . Power Chain Reactions . | . . Missiles Intercepted . | . . Alert | -11 -10 ------- Run | Scr Mat Peak Influence 264 | 35 264 Initial 22 | . 22 Average 88 | 13 94 Maximum Alert Level 1 | . 1 Low Security (%) 91 | 100 90 Level 1 8 | . 9 Level 2 . | . . Level 3 . | . . Level 4 . | . . Level 5 . | . . High Security . | . . Max Security . | . . Squads Dispatched 3 | . 3 Investigation 1 | . 1 Extermination . | . . Reinforcement 2 | . 2 Assault . | . . Garrison . | . . Intercept . | . . Searches Triggered . | . . Construction Impeded . | . . Haulers Reinforced . | . . Active Scanning Responses . | . . Cargo Convoy Interrupts . | . . Stealth | -11 -10 --------- Run | Scr Mat Distress Signals . | . . Communications Jammed . | . . Distress Signals . | . . Times Spotted 25 | . 25 Peak Tracking Total 4 | . 4 Tactical Retreats 4 | . 4 Traps | -11 -10 ------- Run | Scr Mat Traps Triggered 4 | . 4 Indirectly . | . . Trap Hack Attempts . | . . Triggered . | . . Disarmed . | . . Reprogrammed . | . . Reused . | . . Traps Extracted . | . . Installed . | . . Triggered . | . . Machines | -11 -10 ---------- Run | Scr Mat Machines Disabled 1 | . 1 Max in Single Turn 1 | . 1 Machines Sabotaged . | . . Garrisons Compromised . | . . Overloaded Fab Kills . | . . Hacking | -11 -10 --------- Run | Scr Mat Machines Accessed . | . . Terminals . | . . Fabricators . | . . Repair Stations . | . . Recycling Units . | . . Scanalyzers . | . . Garrison Access . | . . Total Hacks . | . . Successful . | . . Failed . | . . Catastrophic . | . . Database Lockouts . | . . Manual . | . . Terminals . | . . Fabricators . | . . Repair Stations . | . . Recycling Units . | . . Scanalyzers . | . . Garrison Access . | . . Terminal Hacks . | . . Fabricator Hacks . | . . Repair Station Hacks . | . . Recycling Unit Hacks . | . . Scanalyzer . | . . Garrison Access Hacks . | . . Unauthorized Hacks . | . . Terminals . | . . Fabricators . | . . Repair Stations . | . . Recycling Units . | . . Scanalyzers . | . . Garrison Access . | . . Data Cores Recovered . | . . Used . | . . Hacking Detections . | . . Full Trace Events . | . . Feedback Events . | . . Feedback Blocked . | . . Robot Schematics Acquired . | . . Robots Built . | . . Authchips . | . . Time . | . . Total Robot Build Rating . | . . Part Schematics Acquired . | . . Parts Built . | . . Authchips . | . . Time . | . . Total Part Build Rating . | . . Parts Repaired . | . . Time . | . . Parts Recycled . | . . Recycled Matter . | . . Retrieved Matter . | . . Retrieved Components . | . . Parts Scanalyzed . | . . Part Schematics Acquired . | . . Parts Damaged . | . . Bothacking | -11 -10 ------------ Run | Scr Mat Used RIF Installer . | . . Robots Hacked . | . . Non-combat . | . . Combat . | . . Robot Hacks Applied . | . . Relay Couplers Released . | . . Fabnet Peak Effective % . | . . Robots Rewired . | . . Allies Hacked . | . . Hacks Repelled . | . . Allies | -11 -10 -------- Run | Scr Mat Total Allies . | . . Largest Group . | . . Highest-Rated Group . | . . Highest-Rated Ally . | . . Total Orders . | . . Ally Attacks . | . . Total Damage . | . . Kills . | . . Allies Corrupted . | . . Allies Melted . | . . Intel | -11 -10 ------- Run | Scr Mat Robot Analysis Total . | . . Derelict Logs Recovered . | . . Drone Launches . | . . Drone Recoveries . | . . Exploration | -11 -10 ------------- Run | Scr Mat Turns Passed 1954 | 149 1805 Spaces Moved 1087 | 118 969 Core 80 | 20 60 Treads . | . . Legs 710 | . 710 Wheels 244 | 98 146 Hover . | . . Flight 53 | . 53 Fastest Speed 37 | 50 37 Average Speed 148 | 80 156 Slowest Speed 400 | 150 400 Overloaded Moves . | . . Propulsion Burnouts . | . . Robots Hopped . | . . Cave-ins Triggered . | . . Exploration Rate (%) 42 | 4 81 Regions Visited 1 Branch Regions . Pre-discovered Areas . | . . Known Exits Taken . | . . Unknown Exits Taken 1 | 1 . Scrap Searched . | . . Spaces Dug . | . . Terrain Destroyed . | . . Melee . | . . Projectile . | . . AOE . | . . Terrain Rammed . | . . Walls Destroyed . | . . Machines Disabled . | . . Actions | -11 -10 --------- Run | Scr Mat Total 1295 | 148 1147 Wait 62 | . 62 Move 1086 | 117 969 Hop . | . . Pick Up 32 | 9 23 Fast Attach 4 | . 4 Attach 16 | 7 9 Detach . | . . Swap 7 | . 7 Drop 10 | . 10 Fire 77 | 15 62 Melee . | . . Ram . | . . Kick 1 | . 1 Crush . | . . Escape Stasis . | . . Rewire . | . . Trap . | . . Miscellaneous . | . . Route ------- -11/Scrapyard -10/Materials (discovered 4 exits: [*Mat x2] / [*Min x2]) History --------- Turn | Location | Event 2 | -11/Scrapyard | Discovered new exit (range 16) 150 | -11/Scrapyard | Entered Materials 369 | -10/Materials | Core integrity fell below 50% 518 | -10/Materials | Discovered new exit (range 12) 595 | -10/Materials | Discovered new exit (range 11) 725 | -10/Materials | Discovered new exit (range 10) 793 | -10/Materials | Discovered new exit (range 15) 832 | -10/Materials | Build established: Mutant 1028 | -10/Materials | Core integrity fell below 20% 1955 | -10/Materials | Destroyed by G-34 Mercenary with Small Laser Last Messages --------------- 01046_ Acquired 9 matter. 01201_ G-34 Mercenary destroyed. 01210_ Acquired 32 matter. 01213_ Acquired 6 matter. 01215_ G-34 Mercenary destroyed. 01215_ Switching to secondary target: G-34 Mercenary. 01261_ Acquired 10 matter. 01398_ O-16 Technician destroyed. 01401_ Acquired 8 matter. 01405_ Acquired Lgt. Ion Engine. 01548_ K-01 Serf cleans the Atomic Centrifuge. 01579_ W-16 Scout destroyed. 01582_ Acquired 8 matter. 01584_ K-01 Serf collects debris. 01586_ Destroyed Datajack. 01597_ K-01 Serf cleans the Atomic Centrifuge. 01731_ Acquired Grenade Launcher. 01846_ Kicked T-07 Excavator. 01890_ K-01 Serf cleans the Pressure Siphon. 01920_ Acquired 21 matter. Map ----- +----------------------------------------------------+ | # + #?????# | | #""" # #?????# """ ############## | | #"Y # #?????# """ ############## | | #""" # ####### """ # # | | # # # """ # = # | | # + # < + % # | | # """ # # # !# | | # """ # ######+## ### ## # | | # """ # #???????# #?# ############### | | # # #???????# ###+####??????????? | | # # #???????# # #??????????? | | # # #???????# # """ #??????????? | | ####### #???????# # """ #??????????? | | ??????# #???????# # """ #???????#### | | ??????# #???????#^^ # """ #???????#!!= | | ??????# #???????#^^!# #???????#!![ | | ???#### #???????# ##+#####???????# | | ???# ######### k ########### | | ???# | | ???# g######### | | ???# # # | | ???# """ """ #""" + ## | | ???# """"""""" #""" # #? | | ???# """"" #""" # #? | | ???# # # #? | | ???# k@ #""" # #? | | ???# #### ######## #""" # #? | | ???# #??# #???#### #""" # #? | | ???# #??# #???# + # +? | | ???# #??# #???# # ! # #? | | ???# #??# #???# ## # < #? | | ???#####?# #??# ########## #? | | ????????# ###+### #???????####### | | ????????# ## # #???????# # | | ????????# < ##"" # ######### # | | ????????# ##"T # | | ????????#"" ""##"" ########### # | | ????????##"|||"### #?????????# ! # | | ?????????##"""##?# =#?????????####### | | ???????????####??# =#???????????????# | | ?????????????????# #???????????????? | | ?????????????????#####????????????????? | | | | | | | | | | | | | | | | | +----------------------------------------------------+ Best States ------------- Heat Dissipation 35 Energy Generation 10 Energy Capacity 250 Matter Stores 300 Matter Capacity 300 Sight Range 16 Terrain Scan Range 16 Terrain Scan Density 10 Evasion (%) 55 Item Schematics ----------------- None Robot Schematics ------------------ None Fabricated ------------ Nothing Alien Tech Used ----------------- None Achievements -------------- None Challenges ------------ None Game ------ Seed EtherialMomentumScythe Manual? 0 Play Time 00:15:10 Cumulative 214.4 hours Start 2022.08.29 @ 17:24:53 End 2022.08.29 @ 17:37:01 Sessions 1 Manual Loads 0 Difficulty Rogue Special Mode None Game No. 246 Rogue 113 Adventurer 81 Explorer 52 Win Type - Total 9 Types 8/0/1/0/0/0/0/0/0 Lore% 32 Gallery% 66 Achievement% 55 Wizard Run 0 Options --------- ASCII 0 Keyboard 0 Movement Mouse Keybinds 0 Fullscreen 1 Font 12/Tallcaps Map View 83x54 Tactical HUD 1 Map Filters NONE Filters NONE Steam 1 RUN: 89f69b61-58af-48f6-88e7-2a9c337dadd1